[Event "Skol-SM i Schack 2024, Grupp A"]
[Site "Arena Varberg, Kattegattsvagen 26, Varberg, Sweden"]
[Date "2024.10.12"]
[Round "4.1"]
[White "Joensson, Oscar"]
[Black "Kleist, Axel"]
[Result "1-0"]
[TimeControl "45 minutes + 10 seconds per move from move one."]
[WhiteFideId "1729977"]
[BlackFideId "1764322"]
[WhiteElo "1955"]
[BlackElo "1912"]

1. d4 {[%clk 00:45:18]} e6 {[%clk 00:45:01]} {[%emt 00:00:21]} 2. c4 {[%clk
00:45:00]} {[%emt 00:00:26]} f5 {[%clk 00:45:06]} {[%emt 00:00:06]} 3. g3
{[%clk 00:45:09]} Nf6 {[%clk 00:45:01]} {[%emt 00:00:14]} 4. Bg2 {[%clk
00:45:18]} {[%emt 00:00:01]} d5 {[%clk 00:45:01]} {[%emt 00:00:11]} 5. Nf3
{[%clk 00:45:25]} {[%emt 00:00:02]} Ne4 {[%clk 00:44:38]} {[%emt 00:00:34]} 6.
O-O {[%clk 00:44:47]} {[%emt 00:00:48]} Be7 {[%clk 00:44:45]} {[%emt 00:00:03]}
7. b3 {[%clk 00:43:00]} {[%emt 00:01:57]} Nc6 {[%clk 00:44:51]} {[%emt
00:00:05]} 8. Bb2 {[%clk 00:40:13]} {[%emt 00:02:56]} h5 {[%clk 00:42:39]}
{[%emt 00:02:21]} 9. Ne5 {[%clk 00:39:10]} {[%emt 00:01:13]} Nxe5 {[%clk
00:39:42]} {[%emt 00:03:07]} 10. dxe5 {[%clk 00:39:18]} {[%emt 00:00:02]} h4
{[%clk 00:39:24]} {[%emt 00:00:29]} 11. Nc3 {[%clk 00:32:58]} {[%emt 00:06:30]}
hxg3 {[%clk 00:38:45]} {[%emt 00:00:49]} 12. hxg3 {[%clk 00:27:45]} {[%emt
00:05:23]} c6 {[%clk 00:28:36]} {[%emt 00:10:19]} 13. Nxe4 {[%clk 00:27:37]}
{[%emt 00:00:18]} fxe4 {[%clk 00:28:36]} {[%emt 00:00:10]} 14. e3 {[%clk
00:26:52]} {[%emt 00:00:54]} Bc5 {[%clk 00:23:53]} {[%emt 00:04:53]} 15. Qg4
{[%clk 00:20:41]} {[%emt 00:06:21]} Qe7 {[%clk 00:23:42]} {[%emt 00:00:22]} 16.
Rac1 {[%clk 00:20:29]} {[%emt 00:00:22]} Bd7 {[%clk 00:18:51]} {[%emt
00:05:01]} 17. Qg6+ {[%clk 00:19:22]} {[%emt 00:01:16]} Kd8 {[%clk 00:10:08]}
{[%emt 00:08:54]} 18. cxd5 {[%clk 00:12:37]} {[%emt 00:06:55]} cxd5 {[%clk
00:10:08]} {[%emt 00:00:09]} 19. Rfd1 {[%clk 00:11:41]} {[%emt 00:01:06]} Rc8
{[%clk 00:05:46]} {[%emt 00:04:33]} 20. a3 {[%clk 00:08:18]} {[%emt 00:03:33]}
Bb6 {[%clk 00:03:44]} {[%emt 00:02:12]} 21. b4 {[%clk 00:06:09]} {[%emt
00:02:19]} Rxc1 {[%clk 00:03:14]} {[%emt 00:00:40]} 22. Rxc1 {[%clk 00:04:34]}
{[%emt 00:01:45]} Be8 {[%clk 00:03:15]} {[%emt 00:00:09]} 23. Qg4 {[%clk
00:04:40]} {[%emt 00:00:02]} Bh5 {[%clk 00:03:18]} {[%emt 00:00:08]} 24. Qf4
{[%clk 00:04:05]} {[%emt 00:00:45]} Rf8 {[%clk 00:02:43]} {[%emt 00:00:46]} 25.
Qh4 {[%clk 00:04:13]} {[%emt 00:00:02]} Qxh4 {[%clk 00:02:45]} {[%emt
00:00:08]} 26. gxh4 {[%clk 00:04:21]} {[%emt 00:00:01]} Bg4 {[%clk 00:02:36]}
{[%emt 00:00:20]} 27. a4 {[%clk 00:03:30]} {[%emt 00:01:01]} Bc7 {[%clk
00:02:15]} {[%emt 00:00:31]} 28. Bd4 {[%clk 00:03:12]} {[%emt 00:00:27]} Rf5
{[%clk 00:01:02]} {[%emt 00:01:24]} 29. Bxa7 {[%clk 00:01:52]} {[%emt
00:01:30]} Rxe5 {[%clk 00:00:45]} {[%emt 00:00:28]} 30. Bd4 {[%clk 00:01:44]}
{[%emt 00:00:16]} Rh5 {[%clk 00:00:46]} {[%emt 00:00:09]} 31. Bxg7 {[%clk
00:01:51]} {[%emt 00:00:03]} Bd6 {[%clk 00:00:31]} {[%emt 00:00:25]} 32. Bf6+
{[%clk 00:01:30]} {[%emt 00:00:31]} Kd7 {[%clk 00:00:20]} {[%emt 00:00:21]} 33.
b5 {[%clk 00:01:08]} {[%emt 00:00:33]} Bb8 {[%clk 00:00:13]} {[%emt 00:00:18]}
34. a5 {[%clk 00:00:47]} {[%emt 00:00:30]} e5 {[%clk 00:00:15]} {[%emt
00:00:08]} 35. Bf1 {[%clk 00:00:26]} {[%emt 00:00:30]} Ke6 {[%clk 00:00:22]}
{[%emt 00:00:03]} 36. Bg5 {[%clk 00:00:34]} {[%emt 00:00:02]} Rh8 {[%clk
00:00:29]} {[%emt 00:00:03]} 37. a6 {[%clk 00:00:39]} {[%emt 00:00:06]} bxa6
{[%clk 00:00:37]} {[%emt 00:00:03]} 38. bxa6 {[%clk 00:00:46]} {[%emt
00:00:03]} Bd6 {[%clk 00:00:23]} {[%emt 00:00:23]} 39. Rb1 {[%clk 00:00:41]}
{[%emt 00:00:14]} Ra8 {[%clk 00:00:21]} {[%emt 00:00:13]} 40. Rb7 {[%clk
00:00:48]} {[%emt 00:00:03]} d4 {[%clk 00:00:21]} {[%emt 00:00:11]} 41. Bc4+
{[%clk 00:00:43]} {[%emt 00:00:14]} Kf5 {[%clk 00:00:21]} {[%emt 00:00:10]} 42.
Rf7+ {[%clk 00:00:44]} {[%emt 00:00:08]} Kg6 {[%clk 00:00:16]} {[%emt
00:00:15]} 43. Rf6+ {[%clk 00:00:51]} {[%emt 00:00:04]} Kg7 {[%clk 00:00:12]}
{[%emt 00:00:14]} 44. Rxd6 {[%clk 00:00:58]} {[%emt 00:00:02]} d3 {[%clk
00:00:20]} {[%emt 00:00:02]} 45. Bf6+ {[%clk 00:00:33]} {[%emt 00:00:35]} Kh7
{[%clk 00:00:16]} {[%emt 00:00:14]} 46. Bxe5 {[%clk 00:00:33]} {[%emt
00:00:10]} Bf3 {[%clk 00:00:24]} {[%emt 00:00:02]} 47. Rd7+ {[%clk 00:00:32]}
{[%emt 00:00:11]} Kg6 {[%clk 00:00:31]} {[%emt 00:00:04]} 48. Rg7+ {[%emt
00:00:15]} Kh6 {[%clk 00:00:34]} {[%emt 00:00:01]} 49. Rd7 {[%clk 00:00:19]}
{[%emt 00:00:23]} Rc8 {[%clk 00:00:18]} {[%emt 00:00:27]} 50. Bxd3 {[%clk
00:00:18]} {[%emt 00:00:11]} exd3 {[%clk 00:00:20]} {[%emt 00:00:08]} 51. Rxd3
{[%clk 00:00:26]} {[%emt 00:00:02]} Rg8+ {[%clk 00:00:26]} {[%emt 00:00:04]} 52.
Kf1 {[%clk 00:00:29]} {[%emt 00:00:06]} Rc8 {[%clk 00:00:30]} {[%emt 00:00:06]}
53. Ke1 {[%clk 00:00:25]} {[%emt 00:00:14]} 1-0

[Event "Skol-SM i Schack 2024, Grupp A"]
[Site "Arena Varberg, Kattegattsvagen 26, Varberg, Sweden"]
[Date "2024.10.12"]
[Round "5.5"]
[White "Emanuelsson, Aron"]
[Black "Keskitalo, Rasmus"]
[Result "1-0"]
[TimeControl "45 minutes + 10 seconds per move from move one."]
[WhiteFideId "1780069"]
[BlackFideId "1768271"]
[WhiteElo "1720"]
[BlackElo "1752"]

1. d4 {[%clk 00:45:17]} {[%emt 00:00:01]} d5 {[%clk 00:45:17]} {[%emt
00:00:03]} 2. Nf3 {[%clk 00:45:20]} {[%emt 00:00:08]} Nf6 {[%clk 00:45:22]}
{[%emt 00:00:04]} 3. e3 {[%clk 00:45:27]} {[%emt 00:00:04]} Bf5 {[%clk
00:44:56]} {[%emt 00:00:35]} 4. c4 {[%clk 00:45:30]} {[%emt 00:00:08]} c6
{[%clk 00:45:02]} {[%emt 00:00:04]} 5. Nc3 {[%clk 00:45:26]} {[%emt 00:00:15]}
e6 {[%clk 00:45:07]} {[%emt 00:00:04]} 6. Be2 {[%clk 00:45:03]} {[%emt
00:00:33]} Bd6 {[%clk 00:44:59]} {[%emt 00:00:18]} 7. Nh4 {[%clk 00:44:48]}
{[%emt 00:00:26]} Bg6 {[%clk 00:45:04]} {[%emt 00:00:04]} 8. O-O {[%clk
00:42:36]} {[%emt 00:02:21]} Nbd7 {[%clk 00:44:28]} {[%emt 00:00:46]} 9. c5
{[%clk 00:42:37]} {[%emt 00:00:10]} Be7 {[%clk 00:43:43]} {[%emt 00:00:55]} 10.
Nxg6 {[%clk 00:39:56]} {[%emt 00:02:51]} hxg6 {[%clk 00:43:50]} {[%emt
00:00:02]} 11. b4 {[%clk 00:39:54]} {[%emt 00:00:13]} Qc7 {[%clk 00:43:13]}
{[%emt 00:00:47]} 12. h3 {[%clk 00:38:55]} {[%emt 00:01:09]} b6 {[%clk
00:38:51]} {[%emt 00:04:32]} 13. a4 {[%clk 00:35:32]} {[%emt 00:03:34]} bxc5
{[%clk 00:35:55]} {[%emt 00:03:05]} 14. bxc5 {[%clk 00:34:08]} {[%emt
00:01:34]} Rb8 {[%clk 00:35:51]} {[%emt 00:00:14]} 15. Bd2 {[%clk 00:33:21]}
{[%emt 00:00:57]} O-O {[%clk 00:35:51]} {[%emt 00:00:10]} 16. Qc2 {[%clk
00:33:19]} {[%emt 00:00:12]} Rb7 {[%clk 00:33:47]} {[%emt 00:02:14]} 17. Rfb1
{[%clk 00:31:52]} {[%emt 00:01:37]} Rfb8 {[%clk 00:33:48]} {[%emt 00:00:09]} 18.
Ba6 {[%clk 00:28:39]} {[%emt 00:03:23]} Rxb1+ {[%clk 00:29:07]} {[%emt
00:04:51]} 19. Rxb1 {[%clk 00:28:40]} {[%emt 00:00:10]} Rxb1+ {[%clk 00:29:14]}
{[%emt 00:00:01]} 20. Qxb1 {[%clk 00:28:46]} {[%emt 00:00:05]} Qb8 {[%clk
00:29:23]} {[%emt 00:00:02]} 21. Qb7 {[%clk 00:25:43]} {[%emt 00:03:12]} Bd8
{[%clk 00:25:56]} {[%emt 00:03:37]} 22. Na2 {[%clk 00:24:47]} {[%emt 00:01:07]}
Qxb7 {[%clk 00:22:48]} {[%emt 00:03:17]} 23. Bxb7 {[%clk 00:24:55]} {[%emt
00:00:02]} Nb8 {[%clk 00:22:58]} {[%emt 00:00:01]} 24. Kf1 {[%clk 00:24:32]}
{[%emt 00:00:33]} Ne4 {[%clk 00:22:52]} {[%emt 00:00:15]} 25. Be1 {[%clk
00:24:30]} {[%emt 00:00:11]} a5 {[%clk 00:22:59]} {[%emt 00:00:03]} 26. Nc1
{[%clk 00:23:31]} {[%emt 00:01:10]} e5 {[%clk 00:20:35]} {[%emt 00:02:34]} 27.
f3 {[%clk 00:22:31]} {[%emt 00:01:10]} Ng5 {[%clk 00:20:43]} {[%emt 00:00:02]}
28. Nb3 {[%clk 00:22:30]} {[%emt 00:00:11]} Ne6 {[%clk 00:20:30]} {[%emt
00:00:24]} 29. dxe5 {[%clk 00:21:42]} {[%emt 00:00:57]} Bc7 {[%clk 00:20:13]}
{[%emt 00:00:26]} 30. f4 {[%clk 00:21:42]} {[%emt 00:00:11]} Nd8 {[%clk
00:20:21]} {[%emt 00:00:02]} 31. Bc8 {[%clk 00:20:51]} {[%emt 00:01:01]} Ne6
{[%clk 00:18:40]} {[%emt 00:01:51]} 32. Bxe6 {[%clk 00:20:32]} {[%emt
00:00:29]} fxe6 {[%clk 00:18:48]} {[%emt 00:00:01]} 33. Bxa5 {[%clk 00:20:34]}
{[%emt 00:00:08]} Bxa5 {[%clk 00:18:56]} {[%emt 00:00:02]} 34. Nxa5 {[%clk
00:20:43]} {[%emt 00:00:02]} Na6 {[%clk 00:19:05]} 35. Nb3 {[%clk 00:19:45]}
{[%emt 00:01:07]} Kf7 {[%clk 00:18:46]} {[%emt 00:00:29]} 36. Ke2 {[%clk
00:19:47]} {[%emt 00:00:09]} g5 {[%clk 00:18:23]} {[%emt 00:00:33]} 37. g4
{[%clk 00:19:04]} {[%emt 00:00:53]} 1-0

[Event "Skol-SM i Schack 2024, Grupp A"]
[Site "Arena Varberg, Kattegattsvagen 26, Varberg, Sweden"]
[Date "2024.10.12"]
[Round "6.9"]
[White "Stanton-Andersson, Coll"]
[Black "Savela, Julina"]
[Result "0-1"]
[TimeControl "45 minutes + 10 seconds per move from move one."]
[WhiteFideId "1758837"]
[BlackFideId "1767437"]
[WhiteElo "1542"]
[BlackElo "1682"]

1. e4 {[%clk 00:45:18]} {[%emt 00:00:02]} c5 {[%clk 00:45:19]} {[%emt
00:00:02]} 2. Nc3 {[%clk 00:45:10]} {[%emt 00:00:18]} Nc6 {[%clk 00:45:27]}
{[%emt 00:00:01]} 3. Nf3 {[%clk 00:45:07]} {[%emt 00:00:13]} g6 {[%clk
00:45:34]} {[%emt 00:00:03]} 4. d4 {[%clk 00:44:06]} {[%emt 00:01:11]} cxd4
{[%clk 00:45:42]} {[%emt 00:00:02]} 5. Nxd4 {[%clk 00:44:08]} {[%emt 00:00:08]}
Bg7 {[%clk 00:45:50]} {[%emt 00:00:01]} 6. Be3 {[%clk 00:43:30]} {[%emt
00:00:48]} Nf6 {[%clk 00:45:58]} {[%emt 00:00:02]} 7. Bc4 {[%clk 00:42:25]}
{[%emt 00:01:15]} Qa5 {[%clk 00:45:50]} {[%emt 00:00:18]} 8. O-O {[%clk
00:38:09]} {[%emt 00:04:01]} O-O {[%clk 00:45:57]} {[%emt 00:00:28]} 9. Re1
{[%clk 00:36:22]} {[%emt 00:01:57]} d6 {[%clk 00:46:00]} {[%emt 00:00:07]} 10.
f4 {[%clk 00:32:01]} {[%emt 00:04:31]} Ng4 {[%clk 00:45:45]} {[%emt 00:00:25]}
11. Nb3 {[%clk 00:28:52]} {[%emt 00:03:20]} Qd8 {[%clk 00:41:05]} {[%emt
00:04:49]} 12. h3 {[%clk 00:28:14]} {[%emt 00:00:48]} Nxe3 {[%clk 00:41:10]}
{[%emt 00:00:06]} 13. Rxe3 {[%clk 00:28:12]} {[%emt 00:00:11]} a6 {[%clk
00:40:50]} {[%emt 00:00:31]} 14. a4 {[%clk 00:24:35]} {[%emt 00:03:47]} Be6
{[%clk 00:37:33]} {[%emt 00:03:26]} 15. Bd5 {[%clk 00:22:44]} {[%emt 00:02:01]}
Qb6 {[%clk 00:35:39]} {[%emt 00:02:05]} 16. Qd2 {[%clk 00:20:13]} {[%emt
00:02:40]} Nd4 {[%clk 00:34:03]} {[%emt 00:01:46]} 17. Kh1 {[%clk 00:18:41]}
{[%emt 00:01:42]} Nxc2 {[%clk 00:32:53]} {[%emt 00:01:20]} 18. Qxc2 {[%clk
00:16:33]} {[%emt 00:02:18]} Qxe3 {[%clk 00:32:59]} {[%emt 00:00:04]} 19. f5
{[%clk 00:13:46]} {[%emt 00:02:57]} gxf5 {[%clk 00:30:43]} {[%emt 00:02:27]} 20.
exf5 {[%clk 00:13:08]} {[%emt 00:00:48]} Bxd5 {[%clk 00:30:16]} {[%emt
00:00:37]} 21. Nxd5 {[%clk 00:12:57]} {[%emt 00:00:20]} Qe5 {[%clk 00:29:46]}
{[%emt 00:00:41]} 22. Nc3 {[%clk 00:11:38]} {[%emt 00:01:28]} Rac8 {[%clk
00:29:48]} {[%emt 00:00:08]} 23. Rc1 {[%clk 00:11:19]} {[%emt 00:00:28]} Qg3
{[%clk 00:29:25]} {[%emt 00:00:33]} 24. Nd2 {[%clk 00:09:20]} {[%emt 00:02:10]}
Bh6 {[%clk 00:28:23]} {[%emt 00:01:13]} 25. Rf1 {[%clk 00:05:51]} {[%emt
00:03:38]} Kh8 {[%clk 00:27:16]} {[%emt 00:01:17]} 26. Nde4 {[%clk 00:04:55]}
{[%emt 00:01:06]} Qe5 {[%clk 00:26:37]} {[%emt 00:00:48]} 27. f6 {[%clk
00:04:01]} {[%emt 00:01:05]} e6 {[%clk 00:23:56]} {[%emt 00:02:52]} 28. Qf2
{[%clk 00:01:55]} {[%emt 00:02:15]} d5 {[%clk 00:23:00]} {[%emt 00:01:07]} 29.
Ng3 {[%clk 00:00:44]} {[%emt 00:01:21]} Rg8 {[%clk 00:22:32]} {[%emt 00:00:38]}
30. Qf3 {[%clk 00:00:24]} {[%emt 00:00:30]} Qxg3 {[%clk 00:22:10]} {[%emt
00:00:32]} 0-1

[Event "Skol-SM i Schack 2024, Grupp A"]
[Site "Arena Varberg, Kattegattsvagen 26, Varberg, Sweden"]
[Date "2024.10.12"]
[Round "4.2"]
[White "Harlin, Jacob"]
[Black "Johansson, William"]
[Result "1-0"]
[TimeControl "45 minutes + 10 seconds per move from move one."]
[WhiteFideId "1728180"]
[BlackFideId "1744070"]
[WhiteElo "1919"]
[BlackElo "1971"]

1. e4 {[%clk 00:45:17]} {[%emt 00:00:02]} c6 {[%clk 00:45:19]} {[%emt
00:00:02]} 2. d4 {[%clk 00:45:26]} {[%emt 00:00:01]} d5 {[%clk 00:45:29]}
{[%emt 00:00:01]} 3. exd5 {[%clk 00:45:34]} {[%emt 00:00:01]} cxd5 {[%clk
00:45:38]} {[%emt 00:00:01]} 4. c4 {[%clk 00:45:43]} {[%emt 00:00:01]} Nf6
{[%clk 00:45:46]} {[%emt 00:00:02]} 5. Nc3 {[%clk 00:45:52]} Nc6 {[%clk
00:45:53]} {[%emt 00:00:04]} 6. Bg5 {[%clk 00:46:00]} {[%emt 00:00:01]} Be6
{[%clk 00:45:46]} {[%emt 00:00:16]} 7. a3 {[%clk 00:45:24]} {[%emt 00:00:47]}
h6 {[%clk 00:34:39]} {[%emt 00:11:17]} 8. Bxf6 {[%clk 00:45:30]} {[%emt
00:00:05]} exf6 {[%clk 00:33:22]} {[%emt 00:01:26]} 9. cxd5 {[%clk 00:45:38]}
{[%emt 00:00:02]} Bxd5 {[%clk 00:33:23]} {[%emt 00:00:09]} 10. Qe2+ {[%clk
00:45:46]} {[%emt 00:00:01]} Be7 {[%clk 00:33:23]} {[%emt 00:00:10]} 11. Qb5
{[%clk 00:45:53]} {[%emt 00:00:04]} Be6 {[%clk 00:28:42]} {[%emt 00:04:51]} 12.
d5 {[%clk 00:45:31]} {[%emt 00:00:32]} a6 {[%clk 00:28:47]} {[%emt 00:00:05]}
13. Qe2 {[%clk 00:41:03]} {[%emt 00:04:38]} Nd4 {[%clk 00:26:43]} {[%emt
00:02:13]} 14. Qe4 {[%clk 00:41:12]} {[%emt 00:00:02]} Qb6 {[%clk 00:25:08]}
{[%emt 00:01:44]} 15. Rd1 {[%clk 00:41:11]} {[%emt 00:00:11]} Bc5 {[%clk
00:21:37]} {[%emt 00:03:41]} 16. b4 {[%clk 00:32:34]} {[%emt 00:08:48]} Bd6
{[%clk 00:13:02]} {[%emt 00:08:45]} 17. Qxd4 {[%clk 00:21:13]} {[%emt
00:11:31]} Qxd4 {[%clk 00:13:09]} {[%emt 00:00:03]} 18. Rxd4 {[%clk 00:21:21]}
{[%emt 00:00:02]} Be5 {[%clk 00:13:17]} {[%emt 00:00:01]} 19. Rd3 {[%clk
00:21:30]} Bxc3+ {[%clk 00:13:22]} {[%emt 00:00:06]} 20. Rxc3 {[%clk 00:21:36]}
{[%emt 00:00:04]} Bxd5 {[%clk 00:13:30]} {[%emt 00:00:01]} 21. Nf3 {[%clk
00:20:17]} {[%emt 00:01:29]} O-O {[%clk 00:13:34]} {[%emt 00:00:06]} 22. Be2
{[%clk 00:20:08]} {[%emt 00:00:20]} Rfe8 {[%clk 00:13:38]} {[%emt 00:00:06]} 23.
Re3 {[%clk 00:20:16]} Re6 {[%clk 00:12:53]} {[%emt 00:00:55]} 24. Rxe6 {[%clk
00:16:18]} {[%emt 00:04:09]} fxe6 {[%clk 00:12:17]} {[%emt 00:00:45]} 25. Kd2
{[%clk 00:15:44]} {[%emt 00:00:44]} Rd8 {[%clk 00:11:32]} {[%emt 00:00:55]} 26.
Ke3 {[%clk 00:14:53]} {[%emt 00:01:01]} g5 {[%clk 00:11:11]} {[%emt 00:00:31]}
27. Rd1 {[%clk 00:12:06]} {[%emt 00:02:57]} b5 {[%clk 00:09:06]} {[%emt
00:02:15]} 28. Ne1 {[%clk 00:10:32]} {[%emt 00:01:44]} f5 {[%clk 00:08:30]}
{[%emt 00:00:46]} 29. f3 {[%clk 00:10:33]} {[%emt 00:00:10]} Rc8 {[%clk
00:08:25]} {[%emt 00:00:15]} 30. Kd2 {[%clk 00:07:02]} {[%emt 00:03:40]} Rd8
{[%clk 00:07:26]} {[%emt 00:01:09]} 31. Nd3 {[%clk 00:07:07]} {[%emt 00:00:04]}
e5 {[%clk 00:07:25]} {[%emt 00:00:11]} 32. Ke1 {[%clk 00:06:24]} {[%emt
00:00:53]} e4 {[%clk 00:05:36]} {[%emt 00:01:59]} 33. fxe4 {[%clk 00:06:21]}
{[%emt 00:00:14]} Bxe4 {[%clk 00:05:39]} {[%emt 00:00:07]} 34. Nc5 {[%clk
00:06:24]} {[%emt 00:00:07]} Rxd1+ {[%clk 00:05:42]} {[%emt 00:00:07]} 35. Kxd1
{[%clk 00:06:05]} {[%emt 00:00:29]} Bxg2 {[%clk 00:05:47]} {[%emt 00:00:05]} 36.
Nxa6 {[%clk 00:06:07]} {[%emt 00:00:08]} Kf7 {[%clk 00:04:47]} {[%emt
00:01:10]} 37. Bxb5 {[%clk 00:06:13]} {[%emt 00:00:04]} Ke6 {[%clk 00:04:53]}
{[%emt 00:00:02]} 38. Be8 {[%clk 00:03:24]} {[%emt 00:03:01]} g4 {[%clk
00:03:49]} {[%emt 00:01:13]} 39. b5 {[%clk 00:03:07]} {[%emt 00:00:28]} Kd6
{[%clk 00:03:10]} {[%emt 00:00:48]} 40. Nb4 {[%clk 00:01:42]} {[%emt 00:01:36]}
Kc5 {[%clk 00:03:04]} {[%emt 00:00:16]} 41. Ke1 {[%clk 00:01:15]} {[%emt
00:00:37]} h5 {[%clk 00:01:52]} {[%emt 00:01:22]} 42. Bc6 {[%clk 00:01:23]}
{[%emt 00:00:01]} Bh3 {[%clk 00:01:28]} {[%emt 00:00:34]} 43. Kf2 {[%clk
00:01:30]} {[%emt 00:00:04]} h4 {[%clk 00:01:24]} {[%emt 00:00:13]} 44. Nd3+
{[%clk 00:01:32]} {[%emt 00:00:08]} Kb6 {[%clk 00:01:25]} {[%emt 00:00:09]} 45.
Nf4 {[%clk 00:01:41]} {[%emt 00:00:01]} g3+ {[%clk 00:01:33]} {[%emt 00:00:03]}
46. hxg3 {[%clk 00:01:39]} {[%emt 00:00:11]} hxg3+ {[%clk 00:01:40]} {[%emt
00:00:03]} 47. Kxg3 {[%clk 00:01:40]} {[%emt 00:00:10]} Bf1 {[%clk 00:01:43]}
{[%emt 00:00:06]} 48. Nd5+ {[%clk 00:01:46]} {[%emt 00:00:03]} Kc5 {[%clk
00:01:13]} {[%emt 00:00:40]} 49. Nc3 {[%clk 00:01:53]} 1-0

[Event "Skol-SM i Schack 2024, Grupp A"]
[Site "Arena Varberg, Kattegattsvagen 26, Varberg, Sweden"]
[Date "2024.10.12"]
[Round "5.6"]
[White "Langhals, Mattias"]
[Black "Demeestere, Ewoud"]
[Result "1/2-1/2"]
[TimeControl "45 minutes + 10 seconds per move from move one."]
[WhiteFideId "1779168"]
[BlackFideId "1773585"]
[WhiteElo "1697"]
[BlackElo "1833"]

1. e4 {[%clk 00:45:17]} {[%emt 00:00:02]} c5 {[%clk 00:45:17]} {[%emt
00:00:03]} 2. Nf3 {[%clk 00:45:21]} {[%emt 00:00:06]} d6 {[%clk 00:45:23]}
{[%emt 00:00:05]} 3. d4 {[%clk 00:45:25]} {[%emt 00:00:06]} cxd4 {[%clk
00:45:28]} {[%emt 00:00:05]} 4. Nxd4 {[%clk 00:45:29]} {[%emt 00:00:05]} Nf6
{[%clk 00:45:36]} {[%emt 00:00:03]} 5. Nc3 {[%clk 00:45:24]} {[%emt 00:00:15]}
Nc6 {[%clk 00:45:36]} {[%emt 00:00:09]} 6. Be3 {[%clk 00:44:32]} {[%emt
00:01:02]} e5 {[%clk 00:44:47]} {[%emt 00:00:59]} 7. Nb3 {[%clk 00:43:34]}
{[%emt 00:01:08]} Be6 {[%clk 00:43:35]} {[%emt 00:01:22]} 8. f3 {[%clk
00:42:32]} {[%emt 00:01:12]} Be7 {[%clk 00:42:26]} {[%emt 00:01:20]} 9. Qd2
{[%clk 00:41:43]} {[%emt 00:00:59]} O-O {[%clk 00:41:56]} {[%emt 00:00:39]} 10.
O-O-O {[%clk 00:40:48]} {[%emt 00:01:06]} a5 {[%clk 00:39:13]} {[%emt
00:02:53]} 11. g4 {[%clk 00:38:11]} {[%emt 00:02:46]} a4 {[%clk 00:38:21]}
{[%emt 00:01:03]} 12. Na1 {[%clk 00:38:03]} {[%emt 00:00:18]} Nb4 {[%clk
00:36:54]} {[%emt 00:01:36]} 13. a3 {[%clk 00:35:12]} {[%emt 00:03:01]} Na2+
{[%clk 00:35:13]} {[%emt 00:01:51]} 14. Nxa2 {[%clk 00:34:42]} {[%emt
00:00:40]} Bxa2 {[%clk 00:35:19]} {[%emt 00:00:04]} 15. h4 {[%clk 00:33:04]}
{[%emt 00:01:49]} Qc7 {[%clk 00:31:20]} {[%emt 00:04:09]} 16. h5 {[%clk
00:30:10]} {[%emt 00:03:03]} d5 {[%clk 00:31:05]} {[%emt 00:00:26]} 17. g5
{[%clk 00:28:00]} {[%emt 00:02:20]} d4 {[%clk 00:30:57]} {[%emt 00:00:18]} 18.
gxf6 {[%clk 00:18:50]} {[%emt 00:09:19]} dxe3 {[%clk 00:31:01]} {[%emt
00:00:06]} 19. Qxe3 {[%clk 00:18:46]} {[%emt 00:00:14]} Bxf6 {[%clk 00:30:59]}
{[%emt 00:00:13]} 20. Bd3 {[%clk 00:18:20]} {[%emt 00:00:36]} Qe7 {[%clk
00:28:57]} {[%emt 00:02:11]} 21. Rdg1 {[%clk 00:15:13]} {[%emt 00:03:16]} Kh8
{[%clk 00:27:54]} {[%emt 00:01:14]} 22. h6 {[%clk 00:14:21]} {[%emt 00:01:02]}
g6 {[%clk 00:27:58]} {[%emt 00:00:06]} 23. c3 {[%clk 00:12:44]} {[%emt
00:01:47]} Rfd8 {[%clk 00:27:31]} {[%emt 00:00:36]} 24. Nc2 {[%clk 00:11:34]}
{[%emt 00:01:22]} Qd6 {[%clk 00:26:06]} {[%emt 00:01:35]} 25. Nb4 {[%clk
00:11:02]} {[%emt 00:00:41]} Bb3 {[%clk 00:25:02]} {[%emt 00:01:15]} 26. Rh2
{[%clk 00:10:07]} {[%emt 00:01:05]} Be7 {[%clk 00:22:53]} {[%emt 00:02:18]} 27.
Bc2 {[%clk 00:08:45]} {[%emt 00:01:32]} Qc7 {[%clk 00:16:28]} {[%emt 00:06:34]}
28. Bxb3 {[%clk 00:08:16]} {[%emt 00:00:41]} Bc5 {[%clk 00:16:08]} {[%emt
00:00:29]} 29. Qg5 {[%clk 00:07:01]} {[%emt 00:01:25]} Be7 {[%clk 00:15:43]}
{[%emt 00:00:36]} 30. Qe3 {[%clk 00:06:56]} {[%emt 00:00:15]} Bxb4 {[%clk
00:13:58]} {[%emt 00:01:54]} 31. Bd5 {[%clk 00:05:23]} {[%emt 00:01:43]} Bc5
{[%clk 00:12:09]} {[%emt 00:01:59]} 32. Qg5 {[%clk 00:05:26]} {[%emt 00:00:06]}
Be7 {[%clk 00:11:56]} {[%emt 00:00:24]} 33. Qe3 {[%clk 00:05:16]} {[%emt
00:00:21]} 1/2-1/2